bitfinex/quotes_SOLUSD_20250822
["timestamp","ask_amount","ask_price","bid_price","bid_amount"]
[1755872256865,0.6,192.77,192.59,0.72]
[1755872257054,0.93279792,192.76,192.72,21.29118973]
[1755872257256,0.93279792,192.76,192.61,0.72]
[1755872257257,0.6,192.75,192.59,2.71284481]
[1755872257449,0.93279792,192.76,192.62,0.72]
[1755872257450,0.64854207,192.74,192.62,0.72]
[1755872257644,21.57551287,192.71,192.59,2.71284481]
[1755872257839,1.24867669,192.7,192.56,0.03]
[1755872258037,21.29118973,192.64,192.58,0.03]
[1755872258236,0.28432314,192.6,192.56,0.03]
[1755872258441,0.28432314,192.56,192.39,0.72]
[1755872258657,0.64918203,192.55,192.41,0.72]
[1755872258970,0.64918203,192.55,192.27,10.52010193]
[1755872258971,0.28432314,192.47,192.32,0.72]
[1755872259284,0.28432314,192.47,192.17,0.52037258]
[1755872259285,0.28432314,192.43,192.26,0.72]
[1755872259557,38.0294856,192.46,192.33,2.71057769]
[1755872259558,0.64962062,192.42,192.33,2.71057769]
[1755872260136,78.52,192.41,192.33,2.71057769]
[1755872260361,0.93401128,192.4,192.33,2.71057769]
[1755872260554,0.28432314,192.38,192.23,0.72]
[1755872260858,0.64978946,192.37,192.23,2.71255248]
[1755872261051,28.14045797,192.24,192.23,2.71255248]
[1755872261254,28.14045797,192.24,192.06,0.03]
[1755872261255,0.28432314,192.23,192.06,0.03]
[1755872261455,0.28432314,192.21,192.06,0.03]
[1755872261684,26.0,192.09,192.06,0.03]
[1755872261871,26.28432314,192.05,191.78,0.72]
[1755872262034,64.79133013,192.05,191.81,2.72009998]
[1755872262365,64.79133013,192.05,191.57,0.5220024]
[1755872262366,10.0,191.96,191.57,0.5220024]
[1755872262535,0.28432314,191.9,191.66,0.72]
[1755872262738,79.25141487,191.89,191.66,0.72]
[1755872262944,0.28432314,191.88,191.71,0.72]
[1755872263150,0.28432314,191.88,190.07,10.37280843]
[1755872263151,0.28432314,191.86,191.66,0.72]
[1755872263353,28.14045797,191.84,191.7,0.72]
[1755872263548,0.28432314,191.84,191.7,0.72]
[1755872263767,79.25161862,191.83,191.54,0.52208415]
[1755872264075,79.25161862,191.83,191.55,0.09301701]
[1755872264076,26.0,191.69,191.55,0.09301701]
[1755872264244,84.43063054,191.83,191.39,0.72]
[1755872264245,48.39645168,191.68,191.39,0.72]
[1755872264445,26.0,191.65,191.39,0.72]
[1755872264667,0.28432314,191.61,191.39,0.72]
[1755872264870,0.28432314,191.59,191.35,0.72]
[1755872265046,79.35246894,191.58,191.36,0.72]
[1755872265377,7.72789659,192.05,191.36,0.72]
[1755872265378,27.85613483,191.65,191.4,27.85613483]
[1755872265685,26.28432314,191.63,191.32,0.5226845]
[1755872265845,0.65233274,191.62,191.34,0.72]
[1755872266049,0.65233274,191.62,191.35,0.52260256]
[1755872266263,0.14216157,191.6,191.36,0.72]
[1755872266474,0.14216157,191.6,191.35,0.72]
[1755872266475,0.14216157,191.56,191.35,0.72]
[1755872266772,26.0,191.45,191.21,0.72]
[1755872266941,26.0,191.45,191.06,5.351089]
[1755872266942,117.27726923,191.44,191.19,0.72]
[1755872267148,37.52,191.44,191.19,0.72]
[1755872267346,89.4729802,191.43,191.19,0.72]
[1755872267654,89.4729802,191.43,191.0,5.13284203]
[1755872267655,0.28432314,191.41,191.2,0.72]
[1755872267851,0.28432314,191.3,191.13,0.72]
[1755872268070,0.6534581,191.29,191.13,0.72]
[1755872268375,26.0,191.24,191.05,0.72]
[1755872268543,37.52,191.23,191.03,0.72]
[1755872268973,37.52,191.23,191.22,27.85613483]
[1755872269166,2.7304646,191.34,191.26,0.14216157]
[1755872269379,1.2904646,191.34,191.33,28.14045797]
[1755872269670,37.52,191.51,191.33,28.14045797]
[1755872269671,37.52,191.51,191.36,25.32429314]
[1755872269880,0.7,191.5,191.36,25.32429314]
[1755872270250,3.42789939,191.5,191.18,0.17]
[1755872270469,0.14216157,191.44,191.09,0.17]
[1755872270665,0.14216157,191.44,190.99,13.31787459]
[1755872270666,26.0,191.31,190.99,0.17]
[1755872270847,0.28432314,191.26,190.95,0.03]
[1755872271047,0.28432314,191.21,190.95,0.03]
[1755872271251,0.7,191.2,190.95,0.03]
[1755872271547,79.20432314,191.19,190.95,0.03]
[1755872271771,27.85613483,191.06,190.95,0.03]
[1755872271987,0.28432314,191.04,190.95,0.03]
[1755872272273,17.06,191.03,190.84,0.03]
[1755872272485,17.06,191.03,190.77,0.1]
[1755872272486,0.28432314,190.95,190.77,0.1]
[1755872272684,79.62,190.94,190.77,0.1]
[1755872272855,79.62,190.93,190.77,0.1]
[1755872273059,0.98432314,190.92,190.77,0.1]
[1755872273254,0.7,190.91,190.77,0.1]
[1755872273969,40.44,190.9,190.77,0.1]
[1755872274150,27.85613483,190.84,190.77,0.1]
[1755872274348,0.28432314,190.87,190.67,0.03]
[1755872274349,0.28432314,190.82,190.67,0.03]
[1755872274578,0.7,190.81,190.67,0.03]
[1755872274754,79.04,190.8,190.67,0.03]
[1755872274951,0.28432314,190.78,190.67,0.03]
[1755872275148,1.42,190.74,190.49,2.73519359]
[1755872275477,1.42,190.61,190.33,8.58]
[1755872275677,26.0,190.74,190.23,26.9642759]
[1755872275678,2.12,190.68,190.6,27.85613483]
[1755872275882,0.7,190.67,190.38,11.41621556]
[1755872276085,1.42,190.62,190.38,2.83621556]
[1755872276257,37.68,190.63,190.41,27.85613483]
[1755872276457,1.42,190.69,190.41,27.85613483]
[1755872276659,1.42,190.77,190.5,8.58]
[1755872276874,37.68,190.79,190.57,0.28432314]
[1755872277072,1.42,190.86,190.78,27.85613483]
[1755872277376,37.68,190.94,190.73,26.0]
[1755872277578,1.42,190.92,190.78,0.28432314]
[1755872277768,1.42,190.92,190.91,27.85613483]
[1755872277968,1.42,190.88,190.77,26.0]
[1755872278272,1.42,190.93,190.87,27.85613483]
[1755872278475,37.68,190.94,190.56,8.58]
[1755872278476,1.42,190.87,190.56,8.58]
[1755872278678,37.68,190.94,190.41,27.85613483]
[1755872278679,1.42,190.77,190.57,0.09349537]
[1755872278982,1.42,190.78,190.51,8.58]
[1755872279165,2.12,190.81,190.77,27.85613483]
[1755872279487,1.42,190.79,190.54,0.14216157]
[1755872279783,2.12,190.84,190.57,0.14216157]
[1755872280086,1.42,190.81,190.6,26.09856906]
[1755872280287,1.42,190.81,190.55,8.58]
[1755872280288,0.7,190.81,190.66,0.28432314]
[1755872280458,0.7,190.81,190.46,18.06689579]
[1755872280459,1.42,190.71,190.46,18.06689579]
[1755872280660,1.42,190.71,190.7,27.85613483]
[1755872280879,1.1819,190.53,190.47,8.58]
[1755872281059,0.8977,190.53,190.41,0.03]
[1755872281390,0.7,190.52,190.25,8.58]
[1755872281598,1.42,190.48,190.38,0.57621556]
[1755872281769,2.03,190.47,190.22,0.72]
[1755872281971,1.42,190.4,190.22,0.72]
[1755872282291,1.42,190.31,190.17,0.72]
[1755872282478,1.42,190.29,190.18,0.72]
[1755872282670,1.42,190.32,190.18,0.72]
[1755872282985,37.74,190.35,190.32,2.73707314]
[1755872283284,1.42,190.34,190.18,0.72]
[1755872283484,1.42,190.28,190.19,5.25789999]
[1755872283695,1.42,190.23,190.19,5.25789999]
[1755872283898,1.42,190.24,190.19,5.25789999]
[1755872284194,0.61,190.23,190.13,5.25955924]
[1755872284504,0.61,190.23,190.12,0.3597445]
[1755872284505,27.85613483,190.19,190.12,0.3597445]
[1755872284656,37.74,190.35,189.9,0.18365726]
[1755872284657,25.96998711,190.14,189.9,0.18365726]
[1755872284861,10.0,190.04,189.87,5.2579]
[1755872285067,27.85613483,189.88,189.61,6.5]
[1755872285265,37.74,190.03,189.62,5.2737053]
[1755872285266,10.0,189.86,189.62,5.2737053]
[1755872285489,0.28432314,189.86,189.62,5.4937053]
[1755872285789,37.78,189.96,189.61,6.5]
[1755872285790,10.0,189.76,189.61,6.5]
[1755872285972,47.78,189.75,189.61,6.5]
[1755872286285,0.28432314,189.71,189.61,6.5]
[1755872286486,79.4,189.7,189.48,5.99737483]
[1755872286668,26.0,189.8,189.53,0.72]
[1755872286870,10.0,189.92,189.48,5.27737483]
[1755872287076,0.29,189.84,189.48,18.47137947]
[1755872287386,0.29,189.84,189.15,26.84025476]
[1755872287387,10.0,189.78,189.33,5.28178312]
[1755872287572,26.0,189.76,189.42,27.85613483]
[1755872287765,0.29,189.75,189.42,27.85613483]
[1755872287989,1.39603677,189.75,189.5,10.0]
[1755872288293,1.39603677,189.75,189.33,45.35590531]
[1755872288294,0.7,189.74,189.33,18.48624094]
[1755872288506,37.84,189.78,189.73,27.85613483]
[1755872288788,1.39603677,189.74,189.63,0.72]
[1755872289000,0.7,189.85,189.63,0.72]
[1755872289179,37.84,189.86,189.63,0.72]
[1755872289496,10.0,189.82,189.53,0.72]
[1755872289799,26.0,189.77,189.46,0.72]
[1755872290014,0.7,189.81,189.52,0.72]
[1755872290166,26.7,189.81,189.49,0.03]
[1755872290367,26.7,189.81,189.32,5.28206211]
[1755872290368,26.0,189.53,189.32,5.28206211]
[1755872290586,37.84,189.52,189.33,0.72]
[1755872290901,0.7,189.69,189.33,0.72]
[1755872291076,37.84,189.71,189.42,27.85613483]
[1755872291273,38.56,189.71,189.65,26.0]
[1755872291476,37.84,189.71,189.52,0.72]
[1755872291676,1.42,189.7,189.52,0.72]
[1755872291895,0.72,189.62,189.47,0.72]
[1755872292093,67.36,189.66,189.48,0.72]
[1755872292278,0.72,189.55,189.43,18.47648206]
[1755872292483,0.72,189.44,189.32,0.72]
[1755872292678,37.9,189.46,189.34,13.20360602]
[1755872292894,37.9,189.46,189.45,27.85613483]
[1755872293200,0.72,189.59,189.45,28.57613483]
[1755872293407,12.66,189.61,189.3,0.03]
[1755872293699,2.74830733,189.75,189.3,0.03]
[1755872293700,0.72,189.71,189.51,26.0]
[1755872293887,37.9,189.73,189.52,0.72]
[1755872294077,1e-08,189.75,189.71,26.0]
[1755872294275,1e-08,189.75,189.59,0.72]
[1755872294477,0.7,189.74,189.59,0.72]
[1755872294705,1e-08,189.75,189.59,0.72]
[1755872294880,0.72,189.71,189.53,0.72]
[1755872295084,0.72,189.71,189.17,26.32300075]
[1755872295085,0.72,189.64,189.48,0.72]
[1755872295281,0.72,189.64,186.96,79.8]
[1755872295282,0.72,189.49,189.34,0.72]
[1755872295483,37.94,189.48,189.35,0.72]
[1755872295685,37.94,189.52,189.47,27.85613483]
[1755872295895,0.72,189.58,189.42,0.72]
[1755872296077,0.72,189.54,189.36,0.72]
[1755872296279,37.94,189.61,189.36,0.72]
[1755872296280,0.72,189.53,189.36,0.72]
[1755872296484,46.7,189.56,189.36,0.72]
[1755872296747,46.46713134,189.56,189.55,27.85613483]
[1755872297014,37.94,189.61,189.55,27.85613483]
[1755872297015,37.89342626,189.61,189.58,26.0]
[1755872297173,37.89342626,189.61,189.46,0.72]
[1755872297376,0.47571657,189.55,189.46,0.72]
[1755872297578,0.47571657,189.55,189.42,27.85613483]
[1755872297579,35.62204662,189.61,189.42,27.85613483]
[1755872297881,1.37,189.58,189.3,0.03]
[1755872298100,0.72,189.53,189.3,0.03]
[1755872298303,35.62204662,189.61,189.52,27.85613483]
[1755872298510,0.72,189.79,189.47,26.0]
[1755872298813,1.37,189.74,189.45,26.0]
[1755872298978,34.98,189.8,189.3,0.03]
[1755872298979,0.72,189.66,189.3,0.03]
[1755872299175,0.72,189.55,189.3,0.03]
[1755872299380,0.65,189.54,189.3,0.03]
[1755872299603,51.24,189.57,189.53,27.85613483]
[1755872299812,34.89893057,189.65,189.35,26.0]
[1755872299994,10.0,189.97,189.67,26.0]
[1755872300192,0.65,189.86,189.74,27.85613483]
[1755872300386,37.98,189.89,189.77,26.0]
[1755872300704,0.65,189.88,189.64,0.72]
[1755872301104,0.65,189.88,189.59,0.28432314]
[1755872301105,0.65,189.88,189.65,0.72]
[1755872301405,79.82,189.87,189.56,0.72]
[1755872301703,79.82,189.87,189.3,26.73836259]
[1755872301704,80.47,189.86,189.49,0.72]
[1755872301879,10.0,189.74,189.42,27.85613483]
[1755872302079,27.85613483,189.69,189.43,0.72]
[1755872302382,0.65,189.73,189.3,10.03]
[1755872302383,38.63,189.68,189.37,16.554059]
[1755872302591,10.0,189.64,189.37,0.72]
[1755872302784,26.0,189.6,189.33,15.84033]
[1755872303008,0.65,189.59,189.3,0.03]
[1755872303302,79.82,189.58,189.31,15.84033]
[1755872303501,79.82,189.58,189.53,27.85613483]
[1755872303702,79.82,189.58,189.32,0.72]
[1755872303703,0.65,189.67,189.57,27.85613483]
[1755872304008,8.65857146,189.74,189.69,26.0]
[1755872304186,7.21041886,189.74,189.69,26.0]
[1755872304388,38.0,189.82,189.55,26.0]
[1755872304590,38.65,189.81,189.56,0.28432314]
[1755872304812,0.65,189.8,189.56,0.28432314]
[1755872305121,0.65,189.8,189.62,0.28432314]
[1755872305282,0.65,189.8,189.54,26.0]
[1755872305482,27.85613483,189.65,189.23,10.0]
[1755872305686,0.65,189.64,189.27,0.03]
[1755872306004,0.28432314,189.59,189.46,27.85613483]
[1755872306304,26.0,189.57,189.44,0.72]
[1755872306479,26.0,189.57,189.27,0.75]
[1755872306480,0.65,189.56,189.27,0.75]
[1755872306684,0.79216157,189.56,189.27,0.03]
[1755872306885,26.0,189.49,189.27,0.03]
[1755872307088,0.65,189.48,189.27,0.03]
[1755872307612,26.0,189.41,189.27,0.03]
[1755872307913,26.0,189.37,189.1,0.72]
[1755872308218,0.65,189.36,189.1,0.72]
[1755872308383,0.65,189.36,189.03,0.72]
[1755872308384,26.93432314,189.36,189.03,0.72]
[1755872308721,26.93432314,189.36,188.86,0.72]
[1755872308722,26.0,189.25,188.86,0.72]
[1755872308886,0.14216157,189.3,188.86,0.72]
[1755872308887,0.28432314,189.13,188.86,0.72]
[1755872309090,0.28432314,189.13,188.77,5.00270067]
[1755872309091,26.0,189.09,188.8,0.72]
[1755872309422,0.93432314,189.08,188.76,27.85613483]
[1755872309586,26.65,189.07,188.74,0.72]
[1755872309788,0.28432314,189.04,188.69,0.72]
[1755872310001,0.65,189.03,188.69,0.72]
[1755872310609,26.0,189.01,188.69,0.72]
[1755872310817,0.65,189.0,188.66,0.72]
[1755872311187,0.65,189.0,188.4,78.06182139]
[1755872311188,0.65,189.0,188.53,4.78603401]
[1755872311484,10.0,188.94,188.53,4.78603401]
[1755872311688,26.0,188.98,188.03,63.27578739]
[1755872311689,10.0,188.88,188.43,15.910899]
[1755872311889,26.0,188.89,188.43,15.910899]
[1755872311890,10.0,188.71,188.43,43.76703383]
[1755872312096,10.0,188.68,188.43,43.26703383]
[1755872312296,38.06,188.74,188.43,15.410899]
[1755872312297,0.65,188.67,188.43,15.410899]
[1755872312500,38.06,188.74,188.26,5.37259581]
[1755872312501,10.65,188.7,188.26,5.37259581]
[1755872312707,38.06,188.74,188.23,38.06]
[1755872312708,38.06,188.74,188.36,4.78603401]
[1755872312913,79.98,188.84,188.43,27.85613483]
[1755872313091,80.63,188.84,188.44,5.11603401]
[1755872313296,0.65,188.84,188.76,0.03]
[1755872313620,80.65123637,189.42,188.76,0.03]
[1755872313621,0.65,189.05,188.84,0.14216157]
[1755872313800,0.65,189.14,188.85,0.33]
[1755872313990,0.65,189.21,188.85,0.33]
[1755872314197,0.65,189.21,188.88,26.0]
[1755872314401,10.0,189.14,188.89,0.33]
[1755872314602,0.65,189.13,188.89,0.61432314]
[1755872314795,10.65,189.13,188.89,0.61432314]
[1755872315030,0.65,189.12,188.84,0.33]
[1755872315389,10.0,189.1,188.84,0.33]
[1755872315589,10.0,188.99,188.76,0.03]
[1755872315896,10.0,188.94,188.76,0.03]
[1755872316231,0.65,188.98,188.76,0.03]
[1755872316516,0.65,188.99,188.76,0.36]
[1755872316715,10.0,188.91,188.76,0.03]
[1755872316928,4.8,189.09,188.76,0.03]
[1755872317136,0.65,189.0,188.77,0.33]
[1755872317306,0.65,189.0,188.76,0.03]
[1755872317644,0.65,189.0,188.77,0.47216157]
[1755872317846,0.65,188.99,188.77,0.14216157]
[1755872318137,0.65,188.99,188.76,0.03]
[1755872318138,10.0,188.98,188.76,0.03]
[1755872318346,10.0,188.89,188.76,0.03]
[1755872318650,10.0,188.78,188.53,0.33]
[1755872318935,0.65,188.77,188.47,0.33]
[1755872319543,10.0,188.76,188.47,0.33]
[1755872319753,64.1,188.88,188.47,0.33]
[1755872319754,0.65,188.75,188.47,0.33]
[1755872319910,10.0,188.99,188.74,27.85613483]
[1755872320109,0.65,188.91,188.67,0.33]
[1755872320309,38.1,188.98,188.93,26.0]
[1755872320608,0.65,189.02,188.94,0.28432314]
[1755872320925,0.65,189.08,189.04,26.0]
[1755872321111,0.65,189.08,189.05,0.28432314]
[1755872321309,0.65,189.08,188.86,0.36]
[1755872321310,4.8,188.97,188.77,0.1]
[1755872321529,0.65,188.96,188.69,0.58]
[1755872321834,10.0,188.75,188.5,0.64]
[1755872322030,10.0,188.75,188.39,15.83]
[1755872322031,38.77,188.74,188.44,0.64]
[1755872322339,0.65,188.74,188.45,0.64]
[1755872322546,38.12,188.76,188.73,27.85613483]
[1755872322724,0.65,188.9,188.75,27.85613483]
[1755872322911,10.0,188.89,188.61,0.37]
[1755872323112,10.0,188.82,188.56,0.64]
[1755872323307,0.1994544,188.75,188.57,26.10437807]
[1755872323512,0.65,188.88,188.77,26.0]
[1755872323732,0.65,188.88,188.48,15.8]
[1755872323733,0.65,188.96,188.91,0.14216157]
[1755872324059,0.65,188.95,188.91,0.28432314]
[1755872324213,0.65,188.94,188.66,0.28432314]
[1755872324418,0.65,188.99,188.93,27.85613483]
[1755872324637,10.0,189.29,188.8,0.28432314]
[1755872324638,10.65,189.06,188.8,0.28432314]
[1755872324814,10.0,188.87,188.42,26.96337317]
[1755872325132,0.65,188.86,188.43,32.8388355]
[1755872325317,0.65,188.86,188.44,0.63]
[1755872325525,10.0,188.76,188.44,0.63]
[1755872325718,0.65,188.75,188.44,0.63]
[1755872326115,0.65,188.82,188.44,0.63]
[1755872326343,4.8,188.75,188.44,4.98270067]
[1755872326524,4.8,188.75,188.45,0.64]
[1755872326851,10.0,188.71,188.45,0.64]
[1755872327059,10.0,188.64,188.43,27.85613483]
[1755872327215,10.0,188.5,188.39,0.03]
[1755872327415,9.92038388,188.33,188.1,5.3642212]
[1755872327728,9.92038388,188.33,188.13,10.0]
[1755872327729,9.92038388,188.21,188.13,10.0]
[1755872327928,9.92038388,188.21,187.98,0.67]
[1755872327929,0.68,188.2,187.98,0.67]
[1755872328130,38.14,188.21,187.96,4.35270067]
[1755872328330,38.14,188.21,187.92,0.07961612]
[1755872328331,10.60038388,188.2,187.93,5.3211302]
[1755872328619,0.68,188.19,187.95,0.07961612]
[1755872328840,38.14,188.37,188.18,27.85613483]
[1755872329045,9.92038388,188.49,188.13,0.07961612]
[1755872329246,46.98,188.48,188.14,0.69]
[1755872329422,9.92038388,188.43,188.14,0.69]
[1755872329630,27.85613483,188.41,188.14,0.97432314]
[1755872329854,9.92038388,188.29,187.99,0.06]
[1755872330021,9.92038388,188.27,187.96,0.03]
[1755872330219,9.92038388,188.22,187.96,0.03]
[1755872330443,26.28432314,188.18,187.8,5.39838257]
[1755872330748,0.68,188.17,187.83,0.69]
[1755872331338,5.48,188.17,187.83,0.69]
[1755872331516,5.48,188.17,187.79,1.6]
[1755872331517,0.68,188.16,187.91,5.92447533]
[1755872331719,39.68,188.15,187.91,5.92447533]
[1755872331930,0.68,188.14,187.91,5.92447533]
[1755872332125,80.9,188.14,187.91,5.92447533]
[1755872332354,26.0,188.11,187.91,5.92447533]
[1755872332556,27.85613483,187.96,187.67,0.69]
[1755872332861,38.86,187.95,187.9,27.85613483]
[1755872333058,38.22,188.07,187.94,27.85613483]
[1755872333358,0.68,188.12,188.06,27.85613483]
[1755872333558,0.68,188.12,187.83,0.14216157]
[1755872333559,80.22,188.19,188.12,5.3157559]
[1755872333727,10.0,188.4,188.12,5.3157559]
[1755872333728,80.32,188.35,188.18,27.85613483]
[1755872333934,38.22,188.43,188.13,0.28432314]
[1755872333935,0.68,188.34,188.13,0.28432314]
[1755872334133,0.68,188.34,188.16,0.28432314]
[1755872334334,0.68,188.34,188.23,0.28432314]
[1755872334562,0.68,188.34,188.15,26.07942722]
[1755872334952,0.68,188.33,188.16,0.28432314]
[1755872335146,27.85613483,188.31,188.16,0.28432314]
[1755872335344,0.68,188.3,188.12,5.3157559]
[1755872335660,10.28432314,188.25,187.8,0.69]
[1755872335968,38.9,188.24,188.18,27.85613483]
[1755872336137,45.12,188.23,187.95,0.69]
[1755872336342,45.12,188.23,187.89,0.69]
[1755872336545,26.0,188.2,187.79,0.69]
[1755872336867,10.0,188.17,187.84,0.03]
[1755872337166,0.68,188.19,187.84,0.03]
[1755872337167,26.0,188.05,187.84,0.03]
[1755872337370,53.85613483,187.92,187.84,0.03]
[1755872337537,10.0,188.02,187.84,0.03]
[1755872337538,80.36,187.91,187.84,0.03]
[1755872337733,10.0,188.03,187.65,0.69]
[1755872337734,80.36,187.9,187.65,0.69]
[1755872338233,38.24,187.95,187.65,0.69]
[1755872338438,0.68,187.91,187.65,0.69]
[1755872338652,26.0,187.86,187.57,0.60290191]
[1755872338937,10.0,187.82,187.29,5.256]
[1755872339140,26.0,187.78,187.44,0.69]
[1755872339349,65.56,187.77,187.44,28.54613483]
[1755872339552,38.24,187.81,187.45,6.02475593]
[1755872339553,0.16,187.76,187.45,6.02475593]
[1755872339755,72.98,187.75,187.45,6.02475593]
[1755872339954,38.44,187.74,187.59,27.85613483]
[1755872340174,80.44,187.73,187.64,27.85613483]
[1755872340357,80.44,187.73,187.45,5.33475593]
[1755872340358,27.85613483,187.65,187.45,5.33475593]
[1755872340542,80.44,187.73,187.45,5.33475593]
[1755872340543,27.85613483,187.58,187.45,5.33475593]
[1755872340744,0.16,187.57,187.53,27.85613483]
[1755872340940,10.0,187.77,187.48,27.85613483]
[1755872340941,0.16,187.56,187.48,27.85613483]
[1755872341152,0.16,187.64,187.45,5.33475593]
[1755872341349,118.72,187.63,187.45,5.33475593]
[1755872341662,118.72,187.63,187.24,5.34073915]
[1755872341663,26.0,187.44,187.24,5.34073915]
[1755872341866,0.16,187.62,187.24,5.34073915]
[1755872341867,38.28,187.43,187.24,5.34073915]
[1755872342044,10.0,187.63,187.24,5.34073915]
[1755872342045,38.32,187.42,187.24,5.34073915]
[1755872342241,38.32,187.41,187.24,5.34073915]
[1755872342465,38.32,187.41,187.23,2.41160764]
[1755872342466,76.46,187.4,187.23,2.41160764]
[1755872342686,26.0,187.18,186.99,5.3864253]
[1755872342964,118.92,187.17,187.0,5.34759358]
[1755872343165,38.32,187.16,187.1,27.85613483]
[1755872343367,0.06,187.3,187.03,0.69]
[1755872343573,64.32,187.29,186.85,5.35188654]
[1755872343750,10.0,187.27,186.95,0.69]
[1755872343952,35.59029622,187.29,187.23,27.85613483]
[1755872344250,0.06,187.35,186.99,10.0]
[1755872344450,38.32,187.37,187.15,0.69]
[1755872344659,10.0,187.58,187.15,0.69]
[1755872344660,0.06,187.5,187.15,0.69]
[1755872344835,38.32,187.49,187.18,26.0]
[1755872345042,38.32,187.49,187.27,26.0]
[1755872345241,1e-08,187.49,187.48,27.85613483]
[1755872345461,1e-08,187.49,187.48,28.54613483]
[1755872345666,1e-08,187.49,187.48,5.33390228]
[1755872345976,118.92,187.7,187.48,5.33390228]
[1755872345977,118.92,187.7,187.51,25.6963293]
[1755872346284,10.0,187.68,187.32,0.69]
[1755872346471,27.85613483,187.52,187.24,0.69]
[1755872346774,10.14216157,187.5,187.13,0.69]
[1755872346970,10.14216157,187.5,186.88,38.41]
[1755872346971,100.76,187.49,187.18,0.69]
[1755872347175,0.28432314,187.48,187.18,0.69]
[1755872347365,38.38,187.49,187.18,0.69]
[1755872347955,10.73699154,188.29,187.22,10.0]
[1755872347956,0.06,187.6,187.22,10.0]
[1755872348147,2.77789189,187.67,187.62,26.0]
[1755872348357,0.06,187.66,187.47,0.68]
[1755872348585,80.7,187.66,187.47,26.68]
[1755872348778,80.7,187.66,187.39,0.67]
[1755872348979,80.64,187.66,187.44,27.85613483]
[1755872349156,65.3639738,187.8,187.44,27.85613483]
[1755872349157,38.4,187.79,187.68,26.0]
[1755872349368,27.85613483,187.71,187.45,0.69]
[1755872349682,26.0,187.67,187.11,10.0]
[1755872349893,10.0,187.55,187.11,27.85613483]
[1755872350079,0.28432314,187.5,187.11,27.85613483]
[1755872350266,26.0,187.41,186.99,0.1]
[1755872350461,78.06,187.49,186.99,0.1]
[1755872350462,10.0,187.38,186.99,0.1]
[1755872350778,13.58,187.37,186.99,0.1]
[1755872350968,0.28432314,187.47,187.11,27.85613483]
[1755872351172,34.68,187.46,187.08,10.0]
[1755872351374,2.60797559,187.37,187.11,27.85613483]
[1755872351560,38.44,187.48,187.36,27.85613483]
[1755872351763,38.44,187.48,187.26,0.69]
[1755872351964,0.22,187.47,187.12,0.83216157]
[1755872352157,38.44,187.48,187.46,27.85613483]
[1755872352380,38.44,187.48,187.29,0.69]
[1755872352586,38.66,187.62,187.29,0.69]
[1755872352886,78.22,187.61,187.46,27.85613483]
[1755872353182,78.22,187.61,187.25,26.0]
[1755872353183,53.85613483,187.48,187.0,10.0]
[1755872353398,26.0,187.31,187.01,0.69]